Cogmind - Beta 13 @@@ ROGUE MODE // 2024.05.29 @ 16:17:46 Player: Waste Result: Destroyed by 8R-AWN with 8R-AWN's Boregun Performance ------------- Evolutions (0) 0 Regions Visited (3) 600 Robots Destroyed (16) 80 Value Destroyed (451) 451 Prototype IDs (24) 480 Alien Tech Used (0) 0 Bonus (300) 300 TOTAL SCORE: 1911 Bonus ------- Aligned with FarCom 300 Cogmind --------- Core Integrity 0/250 Matter 263/300 Energy 100/100 System Corruption 0% Temperature Cool (0) Movement Rolling (105) Ox1 Location -10/Exiles Parts ------- > --- POWER (1) -------- (None) > --- PROPULSION (2) --- Wheel Compact Wheel > --- UTILITY (2) ------ Improved Heat Sink High-capacity Storage Unit > --- WEAPON (2) ------- Assault Rifle > --- INVENTORY (20) --- Ion Engine Light Treads Small Storage Unit Large Storage Unit Huge Storage Unit Medium Matter Pod (100) Experimental Sensor Array EM Pulse Gun Medium Laser Small Laser Peak State ------------ > --- POWER ------------ Ion Engine > --- PROPULSION ------- Light Treads Light Treads > --- UTILITY ---------- High-capacity Storage Unit Experimental Sensor Array > --- WEAPON ----------- Medium Laser Light Assault Rifle > --- INVENTORY -------- Ion Engine Wheel Compact Wheel Small Storage Unit Large Storage Unit Huge Storage Unit EM Pulse Gun Small Laser Assault Rifle [Rating: 15] Favorites ----------- Power Ion Engine Engine Ion Engine Propulsion Light Treads Treads Light Treads Leg Aluminum Leg Wheel Compact Wheel Utility High-capacity Storage Unit Device Improved Heat Sink Storage High-capacity Storage Unit Weapon Medium Laser Energy Gun Medium Laser Ballistic Gun Light Assault Rifle Launcher Rocket Launcher Build | -11 -10 -10 -10 ------- Run | Yrd Mat Min Exi Slots Evolved . | . . . . Power . | . . . . Propulsion . | . . . . Utility . | . . . . Weapon . | . . . . Parts Attached 12 | . 6 3 3 Power 1 | . 1 . . Engine 1 | . 1 . . Core . | . . . . Reactor . | . . . . Propulsion 4 | . 2 . 2 Treads 2 | . 2 . . Leg . | . . . . Wheel 2 | . . . 2 Hover . | . . . . Flight . | . . . . Utility 4 | . 2 2 . Device 2 | . . 2 . Storage 2 | . 2 . . Processor . | . . . . Hackware . | . . . . Protection . | . . . . Artifact . | . . . . Weapon 3 | . 1 1 1 Energy Gun . | . . . . Energy Cannon . | . . . . Ballistic Gun 2 | . 1 1 . Ballistic Cannon . | . . . . Launcher 1 | . . . 1 Special Weapon . | . . . . Impact Weapon . | . . . . Slashing Weapon . | . . . . Piercing Weapon . | . . . . Special Melee Weapon . | . . . . Unidentified Prototypes 1 | . . 1 . Parts Lost 6 | . 2 1 3 Power 2 | . 1 . 1 Propulsion 2 | . 1 . 1 Utility . | . . . . Weapon 2 | . . 1 1 Highest Loss Streak 2 | . 2 1 2 To Critical Strikes 2 | . . . 2 Average Slot Usage (%) 87 | . 77 91 98 Engine 10 | . 6 14 14 Treads 23 | . 19 28 26 Leg 3 | . 8 . . Device 5 | . . 5 14 Storage 14 | . 14 14 14 Energy Gun 13 | . 14 14 11 Ballistic Gun 13 | . 14 13 14 Naked Turns . | . . . . Heaviest Build 52 | 12 48 50 52 Greatest Support 40 | 20 40 40 40 Greatest Overweight (x) 3 | . 2 1 3 Average Overweight (x) . | . . 1 1 Largest Inventory Capacity 20 | . 20 20 20 Average Capacity 19 | . 18 20 20 Most Carried 20 | . 9 13 20 Average Carried 11 | . 8 10 16 Final Capacity 20 | 8 20 20 20 Final Carried 13 | 6 9 13 10 Class Distribution -------------------- 100% | Mutant Dominant Class ---------------- Mutant | -10/Materials Mutant | -10/Mines Mutant | -10/Exiles Resources | -11 -10 -10 -10 ----------- Run | Yrd Mat Min Exi Matter Collected 416 | 200 98 77 41 Remotely . | . . . . Salvage Created 607 | . 363 244 . Parts 28 | . 21 7 . Haulers Intercepted 1 | . 1 . . Recyclers Shooed 1 | . . 1 . Parts Field Recycled . | . . . . Retrieved Matter . | . . . . Parts Self-Destructed . | . . . . Prevented . | . . . . Kills | -11 -10 -10 -10 ------- Run | Yrd Mat Min Exi Combat Hostiles Destroyed 13 | . 7 5 1 Guns 12 | . 7 5 . AOE 1 | . . . 1 Classes Destroyed 5 | . 4 . 1 Hauler 1 | . 1 . . Watcher 3 | . 3 . . Swarmer 3 | . 3 . . Grunt 9 | . 4 5 . Assembled 1 | . . . 1 Best Kill Streak 3 | . 3 2 1 Combat Bots Only 3 | . 3 2 1 Max Kills in Single Turn 1 | . 1 1 1 Gunslinging . | . . . . Exploded 1 | . . . 1 Melee . | . . . . Uniques/NPCs Destroyed . | . . . . Combat | -11 -10 -10 -10 -------- Run | Yrd Mat Min Exi Hostile Shots Fired 107 | . 33 37 37 Missed 29 | . 6 11 12 Damage Taken 1186 | . 329 384 473 Core 261 | . 74 85 102 Absorbed by Shields . | . . . . Core Remaining (%) 100 | 100 . . . Volleys Fired 88 | . 48 27 13 Largest 2 | . 2 2 1 Hottest 70 | . 70 70 33 Shots Fired 162 | . 96 53 13 Gun 159 | . 96 53 10 Cannon . | . . . . Launcher 3 | . . . 3 Special . | . . . . Kinetic 84 | . 48 26 10 Thermal 75 | . 48 27 . Explosive 3 | . . . 3 Electromagnetic . | . . . . Robot Hit Streak 12 | . 12 8 8 Robot Miss Streak 5 | . 5 2 1 Penetration Max . | . . . . Secondary Targets 1 | . . 1 . Max Gunslinging Chain 1 | . . 1 . Shots Hit Robots 110 | . 62 38 10 Core Hits 41 | . 25 13 3 Critical Kills . | . . . . Critical Parts Destroyed . | . . . . Critical Strikes 5 | . 5 . . Burn 5 | . 5 . . Melee Attacks . | . . . . Impact . | . . . . Slashing . | . . . . Piercing . | . . . . Sneak Attacks . | . . . . Combat Hostiles . | . . . . Follow-up Attacks . | . . . . Damage Inflicted 1329 | . 661 457 211 Guns 1206 | . 658 448 100 Cannons . | . . . . Explosions 111 | . . . 111 Melee . | . . . . Ramming 12 | . 3 9 . Kinetic 504 | . 218 186 100 Thermal 702 | . 440 262 . Explosive 111 | . . . 111 Electromagnetic . | . . . . Impact . | . . . . Slashing . | . . . . Piercing . | . . . . Highest Corruption . | . . . . Average Corruption . | . . . . Corruption Purged . | . . . . Corruption Blocked . | . . . . Overload Shots . | . . . . Overflow Damage . | . . . . Projectiles . | . . . . Explosions . | . . . . Melee . | . . . . Knockbacks . | . . . . Impact . | . . . . Kinetic . | . . . . Secondary . | . . . . Self-Inflicted Damage 60 | . . . 60 Shots 3 | . . . 3 Rammed 3 | . 1 2 . Targets Rammed 3 | . 1 2 . Kicked . | . . . . Crushed . | . . . . Highest Temperature 209 | . 209 191 . Average Temperature 74 | . 67 93 . Received Heat Transfer 390 | . 168 222 . Siege Activations . | . . . . Robots Corrupted . | . . . . Combat Hostiles . | . . . . Parts Fried . | . . . . Impact Corruptions . | . . . . Robots Melted . | . . . . Combat Hostiles . | . . . . Parts Melted 6 | . 4 2 . Heat Transferred 2442 | . 1665 777 . Parts Sabotaged . | . . . . Parts Stolen . | . . . . Parts Stripped . | . . . . Power Chain Reactions . | . . . . Alert | -11 -10 -10 -10 ------- Run | Yrd Mat Min Exi Peak Influence 245 | . 245 50 . Initial . | . . . . Average 49 | . 66 27 . Maximum Alert Level 1 | . 1 . . Low Security (%) 97 | . 95 100 . Level 1 2 | . 4 . . Level 2 . | . . . . Level 3 . | . . . . Level 4 . | . . . . Level 5 . | . . . . High Security . | . . . . Max Security . | . . . . Squads Dispatched . | . . . . Investigation . | . . . . Extermination . | . . . . Reinforcement . | . . . . Assault . | . . . . Garrison . | . . . . Intercept . | . . . . Searches Triggered . | . . . . Construction Impeded . | . . . . Haulers Reinforced . | . . . . Active Scanning Responses . | . . . . Cargo Convoy Interrupts . | . . . . Stealth | -11 -10 -10 -10 --------- Run | Yrd Mat Min Exi Distress Signals . | . . . . Communications Jammed . | . . . . Distress Signals . | . . . . Times Spotted 26 | . 16 6 4 Peak Tracking Total 9 | . 3 2 9 Tactical Retreats 1 | . . 1 . Traps | -11 -10 -10 -10 ------- Run | Yrd Mat Min Exi Traps Triggered . | . . . . Indirectly . | . . . . Trap Hack Attempts . | . . . . Triggered . | . . . . Disarmed . | . . . . Reprogrammed . | . . . . Reused . | . . . . Traps Extracted . | . . . . Installed 3 | . . . 3 Triggered . | . . . . Most Traps Carried 3 | . . 3 3 Machines | -11 -10 -10 -10 ---------- Run | Yrd Mat Min Exi Machines Disabled 2 | . . . 2 Max in Single Turn 1 | . . . 1 Machines Repaired . | . . . . Machines Dismantled . | . . . . Machines Sabotaged . | . . . . Overloaded Fab Kills . | . . . . Hacking | -11 -10 -10 -10 --------- Run | Yrd Mat Min Exi Machines Accessed 8 | . 7 . 1 Terminals 7 | . 7 . . Fabricators . | . . . . Repair Stations . | . . . . Recycling Units . | . . . . Scanalyzers . | . . . . Garrison Access . | . . . . Total Hacks 25 | . 24 . 1 Successful 12 | . 11 . 1 Failed 13 | . 13 . . Catastrophic 3 | . 3 . . Database Lockouts . | . . . . Manual 17 | . 16 . 1 Terminals 24 | . 24 . . Fabricators . | . . . . Repair Stations . | . . . . Recycling Units . | . . . . Scanalyzers . | . . . . Garrison Access . | . . . . Terminal Hacks 7 | . 6 . 1 Robot Analysis 2 | . 2 . . Hauler Manifests 1 | . 1 . . Registered Components 1 | . 1 . . Zone Layout 2 | . 2 . . Derelict Proto ID Bank 1 | . . . 1 Fabricator Hacks . | . . . . Repair Station Hacks . | . . . . Recycling Unit Hacks . | . . . . Scanalyzer . | . . . . Garrison Access Hacks . | . . . . Unauthorized Hacks 5 | . 5 . . Terminals 5 | . 5 . . Track 2 | . 2 . . Botnet 3 | . 3 . . Fabricators . | . . . . Repair Stations . | . . . . Recycling Units . | . . . . Scanalyzers . | . . . . Garrison Access . | . . . . Data Cores Recovered . | . . . . Used . | . . . . Hacking Detections 7 | . 7 . . Full Trace Events . | . . . . Feedback Events . | . . . . Feedback Blocked . | . . . . Robot Schematics Acquired . | . . . . Robots Built . | . . . . Authchips . | . . . . Time . | . . . . Total Robot Build Rating . | . . . . Part Schematics Acquired . | . . . . Parts Built . | . . . . Authchips . | . . . . Time . | . . . . Total Part Build Rating . | . . . . Parts Repaired . | . . . . Time . | . . . . Parts Recycled . | . . . . Recycled Matter . | . . . . Retrieved Matter . | . . . . Retrieved Components . | . . . . Parts Scanalyzed . | . . . . Part Schematics Acquired . | . . . . Parts Damaged . | . . . . Bothacking | -11 -10 -10 -10 ------------ Run | Yrd Mat Min Exi Used RIF Installer . | . . . . Robots Hacked . | . . . . Non-combat . | . . . . Combat . | . . . . Robot Hacks Applied . | . . . . Relay Couplers Released . | . . . . Fabnet Peak Effective % . | . . . . Robots Rewired . | . . . . Allies Hacked . | . . . . Hacks Repelled . | . . . . Allies | -11 -10 -10 -10 -------- Run | Yrd Mat Min Exi Total Allies . | . . . . Largest Group . | . . . . Highest-Rated Group . | . . . . Highest-Rated Ally . | . . . . Total Orders . | . . . . Ally Attacks 7 | . . . 7 Total Damage 293 | . . . 293 Kills . | . . . . Allies Corrupted . | . . . . Allies Melted . | . . . . Turrets Deployed 3 | . . . 3 Intel | -11 -10 -10 -10 ------- Run | Yrd Mat Min Exi Robot Analysis Total 2 | . 2 . . Derelict Logs Recovered 2 | . . 2 . Drone Launches . | . . . . Drone Recoveries . | . . . . Exploration | -11 -10 -10 -10 ------------- Run | Yrd Mat Min Exi Turns Passed 2825 | . 1216 901 708 Spaces Moved 1085 | 1 486 334 264 Core . | . . . . Treads 925 | . 329 334 262 Legs 158 | 1 157 . . Wheels 2 | . . . 2 Hover . | . . . . Flight . | . . . . Fastest Speed 105 | 120 120 240 105 Average Speed 228 | 120 213 240 241 Slowest Speed 320 | 120 260 240 320 Overloaded Moves . | . . . . Propulsion Burnouts . | . . . . Robots Hopped . | . . . . Cave-ins Triggered . | . . . . Exploration Rate (%) 62 | 2 92 89 66 Regions Visited 3 Branch Regions 2 Pre-discovered Areas 1 | . . 1 . Known Exits Taken . | . . . . Unknown Exits Taken 3 | 1 1 1 . Scrap Searched 1 | . . 1 . Spaces Dug . | . . . . Terrain Destroyed 14 | . . . 14 Melee . | . . . . Projectile . | . . . . AOE 14 | . . . 14 Terrain Rammed . | . . . . Walls Destroyed . | . . . . Machines Disabled . | . . . . Actions | -11 -10 -10 -10 --------- Run | Yrd Mat Min Exi Total 1282 | . 576 381 325 Wait 67 | . 30 11 26 Move 1082 | . 485 333 264 Hop . | . . . . Pick Up 14 | . 3 4 7 Fast Attach 5 | . 3 2 . Attach 4 | . 2 1 1 Detach 3 | . 2 1 . Swap 3 | . 1 . 2 Drop 10 | . 1 . 9 Fire 88 | . 48 27 13 Melee . | . . . . Ram . | . . . . Kick . | . . . . Crush 3 | . 1 2 . Escape Stasis . | . . . . Rewire . | . . . . Trap 3 | . . . 3 Miscellaneous . | . . . . Route ------- -11/Scrapyard -10/Materials (discovered 4 exits: [*Mat x3] / [*Min]) -10/Mines (discovered 3 exits: [*Mat x2] / *Exi) -10/Exiles History --------- Turn | Location | Event 1 | -11/Scrapyard | Discovered new exit (range 0) 1 | -11/Scrapyard | Entered Materials 114 | -10/Materials | Discovered new exit (range 8) 302 | -10/Materials | Build established: Mutant 667 | -10/Materials | Discovered new exit (range 11) 1149 | -10/Materials | Discovered new exit (range 4) 1197 | -10/Materials | Discovered new exit (range 9) 1217 | -10/Materials | Entered Mines 1275 | -10/Mines | Learned 4 Materials zone layouts 1520 | -10/Mines | Found a damaged Exp. Sensor Array with a note attached 1525 | -10/Mines | Found Prototype Device 1525 | -10/Mines | Identified Exp. Sensor Array 1580 | -10/Mines | Learned location of Zion (-7) 1630 | -10/Mines | Received a Rocket Launcher from a helpful Derelict 1724 | -10/Mines | Core integrity fell below 50% 1890 | -10/Mines | Found a hidden stash of uninstalled traps 1963 | -10/Mines | Discovered new exit (range 9) 2016 | -10/Mines | Discovered new exit (range 5) 2104 | -10/Mines | Deemed a non-threat by the Exiles lab entrance 2106 | -10/Mines | Discovered new exit (range 5) 2118 | -10/Mines | Entered Exiles 2191 | -10/Exiles | Met 8R-AWN 2229 | -10/Exiles | Met EX-HEX 2299 | -10/Exiles | Met EX-BIN 2325 | -10/Exiles | Aligned with FarCom system 2328 | -10/Exiles | Given EX-Vault access code 2383 | -10/Exiles | Opened EX-Vault 2397 | -10/Exiles | Found Deploy-a-Sentry 2401 | -10/Exiles | Found Deploy-a-Sentry 2404 | -10/Exiles | Found Deploy-a-Sentry 2456 | -10/Exiles | Warned to stay clear of 0b10 Research branches 2520 | -10/Exiles | Met EX-DEC 2690 | -10/Exiles | Attacked by the Exiles 2747 | -10/Exiles | DAS Turret deployed 2779 | -10/Exiles | DAS Turret deployed 2786 | -10/Exiles | DAS Turret deployed 2822 | -10/Exiles | Core integrity fell below 20% 2826 | -10/Exiles | Destroyed by 8R-AWN with 8R-AWN's Boregun Last Messages --------------- 02817_ HV Slug penetrates Wall. 02818_ Wall collapses. 02819_ Penetrated by HV Slug. 02819_ HV Slug penetrates Wall. 02819_ Penetrated by HV Slug. 02819_ HV Slug penetrates Wall. 02821_ Penetrated by HV Slug. 02821_ HV Slug penetrates Wall. 02821_ Penetrated by HV Slug. 02821_ Critical hit (Destroy). 02821_ Rocket Launcher destroyed. 02821_ HV Slug penetrates Earth. 02824_ Penetrated by HV Slug. 02824_ HV Slug penetrates Earth. 02824_ Penetrated by HV Slug. 02824_ Ion Engine destroyed. 02824_ HV Slug penetrates Earth. 02826_ Penetrated by HV Slug. 02826_ HV Slug penetrates Wall. 02826_ Penetrated by HV Slug. Map ----- +----------------------------------------------------+ | ?????????????????????????????????????????????????? | | ?????????????????????????????????????????????????? | | ?????????????????????????????????????????????????? | | ?????????????????????????????????????????????????? | | ?????????????????????????????????????????????????? | | ?????????????????????????????????????????????????? | | ?????????????????????????????????????????????????? | | ?????????????????????????????????????????????????? | | ?????????????????????????????????????????????????? | | ?????????????????????????????????????????????????? | | ?????????????????????????????????#######?????????? | | ??????????????????? ######???????#!!! "#?????????? | | ??????????????????? #""#??????# "#?????????? | | ??????????????????? ??????# "#?????????? | | ??????????????????? #????## ""#?????????? | | ??????????????????? #####" ""#?????????? | | ???????????????????? ##" ""??????????? | | ????????????????????? #"" %%#???????????? | | ??????????????????????? ##??????????? | | ?????????????????????????# %* ###????????? | | ??????????????????????????## g %; ##???????? | | ???????????????????######## = %"#???????? | | ???????????????????# !!" ^ % # #?????? | | ???????????????????#! ^^ "#####??? | | ???????????????????#! % % ""#### | | ???????????????????#! @ %%# % | | ???????????????????# ! #### ## % | | ???????????????????#;#;;;;;##???###### | | ???????????????????? ###?????????### | | ???????????????????# # #??????????????### | | ???????????????????# ###?????????????????## | | ???????????????????##?????????????????????## | | ???????????????????????????????????????????##" | | ????????????????????????????????????????????#""" | | ???????????????????????????????????????????##" | | ???????????????????????????????????????????#"" | | ???????????????????????????????????????????#""" | | ??????????????????????????????????????????#""" | | ??????????????????????????????????????????#""" | | ??????????????????????????????????????????#"" | | ??????????????????????????????????????????#""" | | ??????????????????????????????????????????#"" | | ??????????????????????????????????????????##"" | | ???????????????????????????????????????????#"""" | | ????????????????????????????????????????????# | | ????????????????????????????????????????????#" | | ????????????????????????????????????????????#"""" | | ????????????????????????????????????????????#"" | | ?????????????????????????????????????????????" | | ?????????????????????????????????????????????""" | +----------------------------------------------------+ Best States ------------- Heat Dissipation 39 Energy Generation 10 Energy Capacity 250 Matter Stores 300 Matter Capacity 300 Sight Range 16 Terrain Scan Density 10 Evasion (%) 55 Recoil Reduction 2 Item Schematics ----------------- None Robot Schematics ------------------ None Fabricated ------------ Nothing Alien Tech Used ----------------- None Achievements -------------- None Challenges ------------ None Game ------ Seed ControlInertialBroadsword Manual? 0 Play Time 00:12:44 Cumulative 245.1 hours Start 2024.05.29 @ 16:08:16 End 2024.05.29 @ 16:17:46 Sessions 1 Manual Loads 0 Difficulty Rogue Special Mode None Game No. 301 Rogue 301 Adventurer 0 Explorer 0 Win Type - Total 9 Types 5/1/0/1/1/0/0/1/0 Lore% 73 Gallery% 81 Achievement% 70 Wizard Run 0 Options --------- Layout 0 ASCII 0 Keyboard 0 Movement Numpad Keybinds 0 Fullscreen 1 Font 18/SmallcapsGlow Map View 76x50 Zoom Use 0% Tactical HUD 1 Map Filters NONE Filters NONE Steam 1 RUN: 154813ef-bdbf-4c86-b22d-3a6a340b219e